Workbook

Sheet Calculations (hidden)
B1: Bandwidth | E1: Max Frame Rate Calculation
B2: Protocol | C2: Bandwidth (Gbps) | E2: Parameter | F2: Value | G2: Remark
B3: CXP3 | C3: 2.4 | E3: Bandwidth | F3: =VLOOKUP(UserInterface!$D$26,$B$3:$D$5,2,FALSE)*(100-$C$6)/100 -> 9.8
B4: CXP6 | C4: 4.9 | E4: # of links | F4: =UserInterface!D24 -> 4
B5: CXP12 | C5: 9.8 | E5: Total Bandwidth | F5: =F3*F4*1000000000 -> 39200000000
B6: Overhead (%) | C6: 0 | E6: CLK_PIX (Hz) | F6: =VLOOKUP($C$9,$E$31:$O$36,6,FALSE) / F13 -> 100000000 | G6: Sensor Clock per pixel
E7: CLK_PIX Period (s) | F7: =1/F6 -> 1e-08 | G7: TCLK_PIX
E8: SOL+EOL | F8: =IF("Normal"=UserInterface!D21,4,2) -> 4
B9: Sensor select | C9: =CONCATENATE(UserInterface!$B$19," ",UserInterface!$D$21) -> Iron 4521 Normal | E9: Pixel per clock | F9: =CEILING($C$14 / 2 * 4 / VLOOKUP($C$9,$E$31:$O$36,10,FALSE), 4) -> 256
B10: Bitness | C10: 8 | E10: Readout Black Lines | F10: 0
C11: 10 | E11: Lines | F11: =UserInterface!$D$22 -> 4096 | G11: NROW
C12: 12 | E12: Columns | F12: =UserInterface!$D$23 -> 5120
B13: Height | C13: =VLOOKUP($C$9,$E$31:$M$36,4,FALSE) -> 4096 | E13: Readout Bits (8,10,12) | F13: =UserInterface!$D$25 -> 12
B14: Width | C14: =VLOOKUP($C$9,$E$31:$M$36,5,FALSE) -> 5120 | E14: Line Size (Bits) | F14: =F12*F13 -> 61440
B15: Speed | C15: Normal | E15: Line Rate (Hz) | F15: =F5/F14 -> 638020.8333
C16: Binning2x2 | E16: Shortes protocol line time (s) | F16: =1/F15 -> 1.567346939e-06
E17: Shortest line time (clocks) | F17: =F16/F7 -> 156.7346939
E18: Sensor line time (clocks) | F18: =MAX(($F$9+$F$8), CEILING(VLOOKUP($C$9,$E$31:$O$36,IF(8=$F$13,7,IF(10=$F$13,8,9)),FALSE),4)) / 2 -> 130 | G18: 2 lines are read in parrallel, 1 from each half of the sensor
E19: Shortest sensor line times | F19: =MAX(F18,ROUNDUP(F17,0)) -> 157
E20: Actual line time [sec] | F20: =F19*F7 -> 1.57e-06
E21: TFOT [sec] | F21: =IF("Iron 4502"=UserInterface!B19, IF(8=$F$13,5,IF(10=$F$13,8,10)), 10) / 1000000 -> 1e-05
E22: TFOT Actual [sec] | F22: =F21 + VLOOKUP($C$9,$E$31:$Q$36,IF(8=$F$13,11,IF(10=$F$13,12,13)),FALSE) * F20 * 4 -> 6.652e-05
E23: TRD [sec] | F23: =(F11+F10)*F20 -> 0.00643072
E24: TFRM (Min) [sec] | F24: =F22+F23 -> 0.00649724
E26: Max FPS | F26: =FLOOR(1/F24,1) -> 153
B30: Sensors list | E30: Sensor | F30: Sensor Height (V) | G30: Sensor Width (H) | H30: Max Height (V) | I30: Max Width (H) | J30: Sensor Clock | K30: 8bit min line time | L30: 10bit min line time | M30: 12bit min line time | N30: Total used MUX | O30: 8bit FOT in lines | P30: 10bit FOT in lines | Q30: 12bit FOT in lines
B31: Iron 4521 | E31: Iron 4521 Normal | F31: 4128 | G31: 5376 | H31: 4096 | I31: 5120 | J31: 1200000000 | K31: 71 | L31: 114 | M31: 193 | N31: 40 | O31: 19 | P31: 13 | Q31: 9
B32: Iron 4510 | E32: Iron 4521 Binning2x2 | F32: =F31/2 -> 2064 | G32: =G31/2 -> 2688 | H32: 2048 | I32: 2560 | J32: 1200000000 | K32: =CEILING(K31/2,1) -> 36 | L32: =CEILING(L31/2,1) -> 57 | M32: 97 | N32: 40 | O32: 21 | P32: 15 | Q32: 11
B33: Iron 4502 | E33: Iron 4510 Normal | F33: 2240 | G33: 4864 | H33: 2176 | I33: 4608 | J33: 1200000000 | K33: 68 | L33: 106 | M33: 187 | N33: 36 | O33: 19 | P33: 13 | Q33: 9
E34: Iron 4510 Binning2x2 | F34: =F33/2 -> 1120 | G34: =G33/2 -> 2432 | H34: 1088 | I34: 2304 | J34: 1200000000 | K34: =CEILING(K33/2,1) -> 34 | L34: =CEILING(L33/2,1) -> 53 | M34: 94 | N34: 36 | O34: 21 | P34: 15 | Q34: 11
E35: Iron 4502 Normal | F35: 1280 | G35: 2304 | H35: 1216 | I35: 2048 | J35: 1200000000 | K35: 68 | L35: 106 | M35: 187 | N35: 32 | O35: 9 | P35: 9 | Q35: 7
E36: Iron 4502 Binning2x2 | F36: =F35/2 -> 640 | G36: =G35/2 -> 1152 | H36: 608 | I36: 1024 | J36: 1200000000 | K36: =CEILING(K35/2,1) -> 34 | L36: =CEILING(L35/2,1) -> 53 | M36: 94 | N36: 32 | O36: 13 | P36: 13 | Q36: 11

Sheet UserInterface (hidden)
B4: IRON
B7: Frame-Rate Calculator
B15: This document is provided as a simple and convinent tool for our customers to use. Please feel free to contact our support team with any questions - we will be happy to provide assitance and support! For more information, products and the latest updates visit our website, www.KayaInstruments.com
A19: Selector u | B19: Iron 4521
C20: =Calculations!C13&" (V) x "&Calculations!C14&" (H)" -> 4096 (V) x 5120 (H)
B21: Mode Selection | D21: Normal
B22: Number of Desired lines (V) | D22: 4096
B23: Desired Number of Horizontal Pixels (H) | D23: 5120
B24: Number of Links | D24: 4
B25: Bitness Selection: | D25: 12
B26: Interface Selection: | D26: CXP12
B27: MAX Frame Rate: | D27: =Calculations!F26 -> 153

Sheet Start
B18: You must enable macros in order to use this calculator!
